[Event "Titled Tuesday Blitz January 31 Early 2023"]
[White "Jones, Gawain C B"]
[Black "Milikow, Yoav"]
[WhiteFideId "409561"]
[BlackFideId "2822237"]
[WhiteElo "2618"]
[BlackElo "2394"]
[Result "1-0"]
[Round "04"]
[TimeControl "180+2"]
[Date "2023.01.31"]
[WhiteClock "0:00:10"]
[BlackClock "0:00:07"]

1. Nf3 {[%clk 0:03:00]}  d5 {[%clk 0:02:57]} 2. c4 {[%clk 0:03:00]}  d4 {[%clk 0:02:56]} 3. b4 {[%clk 0:03:00]}  c5 {[%clk 0:02:56]} 4. g3 {[%clk 0:03:00]}  Nf6 {[%clk 0:02:56]} 5. Bg2 {[%clk 0:02:59]}  cxb4 {[%clk 0:02:56]} 6. a3 {[%clk 0:02:59]}  bxa3 {[%clk 0:02:46]} 7. O-O {[%clk 0:02:56]}  Nc6 {[%clk 0:02:46]} 8. Bxa3 {[%clk 0:02:47]}  e5 {[%clk 0:02:46]} 9. Bxf8 {[%clk 0:02:47]}  Kxf8 {[%clk 0:02:47]} 10. d3 {[%clk 0:02:43]}  g6 {[%clk 0:02:46]} 11. Nbd2 {[%clk 0:02:43]}  Kg7 {[%clk 0:02:46]} 12. Qb3 {[%clk 0:02:39]}  Qc7 {[%clk 0:02:44]} 13. Rfb1 {[%clk 0:02:38]}  a5 {[%clk 0:02:38]} 14. c5 {[%clk 0:02:19]}  Nb4 {[%clk 0:02:30]} 15. Nc4 {[%clk 0:02:15]}  Be6 {[%clk 0:02:21]} 16. Nfxe5 {[%clk 0:02:07]}  Ra7 {[%clk 0:01:51]} 17. Qa4 {[%clk 0:01:37]}  Nbd5 {[%clk 0:01:32]} 18. Qa3 {[%clk 0:01:23]}  Nc3 {[%clk 0:01:24]} 19. Rb2 {[%clk 0:01:20]}  Ng4 {[%clk 0:00:49]} 20. Nf3 {[%clk 0:01:03]}  Bxc4 {[%clk 0:00:43]} 21. Nxd4 {[%clk 0:00:56]}  Ba6 {[%clk 0:00:13]} 22. Qxc3 {[%clk 0:00:56]}  Nf6 {[%clk 0:00:13]} 23. Nb5 {[%clk 0:00:50]}  Bxb5 {[%clk 0:00:13]} 24. Rxb5 {[%clk 0:00:51]}  a4 {[%clk 0:00:12]} 25. Rb6 {[%clk 0:00:45]}  Qe7 {[%clk 0:00:12]} 26. e4 {[%clk 0:00:31]}  Rc8 {[%clk 0:00:10]} 27. Qd4 {[%clk 0:00:20]}  Ra5 {[%clk 0:00:05]} 28. e5 {[%clk 0:00:17]}  Ne8 {[%clk 0:00:02]} 29. e6+ {[%clk 0:00:16]}  Qf6 {[%clk 0:00:02]} 30. Qxf6+ {[%clk 0:00:16]}  Nxf6 {[%clk 0:00:03]} 31. Rxb7 {[%clk 0:00:16]}  Raxc5 {[%clk 0:00:03]} 32. Rxf7+ {[%clk 0:00:16]}  Kh6 {[%clk 0:00:04]} 33. Rxa4 {[%clk 0:00:11]}  Rc1+ {[%clk 0:00:05]} 34. Bf1 {[%clk 0:00:11]}  Nd5 {[%clk 0:00:05]} 35. Rh4+ {[%clk 0:00:10]}  Kg5 {[%clk 0:00:05]} 36. f4+ {[%clk 0:00:10]}  Nxf4 {[%clk 0:00:06]} 37. Rfxf4 {[%clk 0:00:10]}  Re1 {[%clk 0:00:06]} 38. Rxh7 {[%clk 0:00:09]}  Rcc1 {[%clk 0:00:07]} 39. h4# {[%clk 0:00:10]} 1-0


[Site "https://www.chess.com"]

[Event "Titled Tuesday Blitz January 31 Early 2023"]
[White "Andreikin, Dmitry"]
[Black "Avila Pavas, Santiago"]
[WhiteFideId "4158814"]
[BlackFideId "4437128"]
[WhiteElo "2729"]
[BlackElo "2522"]
[Result "1-0"]
[Round "04"]
[TimeControl "180+2"]
[Date "2023.01.31"]
[WhiteClock "0:01:08"]
[BlackClock "0:00:01"]

1. d4 {[%clk 0:02:56]}  Nf6 {[%clk 0:03:00]} 2. c4 {[%clk 0:02:55]}  c5 {[%clk 0:03:01]} 3. Nf3 {[%clk 0:02:54]}  cxd4 {[%clk 0:03:01]} 4. Nxd4 {[%clk 0:02:53]}  Nc6 {[%clk 0:03:02]} 5. Nc3 {[%clk 0:02:50]}  g6 {[%clk 0:03:02]} 6. g3 {[%clk 0:02:48]}  Bg7 {[%clk 0:03:03]} 7. Bg2 {[%clk 0:02:48]}  O-O {[%clk 0:03:03]} 8. O-O {[%clk 0:02:48]}  Qa5 {[%clk 0:03:02]} 9. e3 {[%clk 0:02:35]}  d6 {[%clk 0:02:35]} 10. Bd2 {[%clk 0:02:28]}  Qc7 {[%clk 0:02:25]} 11. Rc1 {[%clk 0:02:27]}  Nxd4 {[%clk 0:02:24]} 12. exd4 {[%clk 0:02:26]}  Qxc4 {[%clk 0:01:48]} 13. Nd5 {[%clk 0:02:26]}  Qxd4 {[%clk 0:01:49]} 14. Nxe7+ {[%clk 0:02:24]}  Kh8 {[%clk 0:01:49]} 15. Bc3 {[%clk 0:02:14]}  Qxd1 {[%clk 0:01:46]} 16. Rfxd1 {[%clk 0:02:14]}  Be6 {[%clk 0:01:28]} 17. Bxb7 {[%clk 0:02:14]}  Rab8 {[%clk 0:01:25]} 18. Bf3 {[%clk 0:02:13]}  Bxa2 {[%clk 0:01:21]} 19. Rxd6 {[%clk 0:02:13]}  Ne8 {[%clk 0:01:16]} 20. Ra6 {[%clk 0:02:03]}  Bxc3 {[%clk 0:01:05]} 21. bxc3 {[%clk 0:02:04]}  Rb2 {[%clk 0:00:58]} 22. c4 {[%clk 0:02:00]}  Nc7 {[%clk 0:00:52]} 23. Rxa7 {[%clk 0:02:01]}  Ne6 {[%clk 0:00:53]} 24. c5 {[%clk 0:02:01]}  Nd4 {[%clk 0:00:53]} 25. Kg2 {[%clk 0:01:52]}  Nxf3 {[%clk 0:00:40]} 26. Kxf3 {[%clk 0:01:53]}  Rd8 {[%clk 0:00:41]} 27. c6 {[%clk 0:01:49]}  Rd3+ {[%clk 0:00:40]} 28. Ke4 {[%clk 0:01:46]}  Rdd2 {[%clk 0:00:31]} 29. Rxa2 {[%clk 0:01:44]}  Rxa2 {[%clk 0:00:30]} 30. c7 {[%clk 0:01:45]}  Re2+ {[%clk 0:00:30]} 31. Kd5 {[%clk 0:01:38]}  Ra8 {[%clk 0:00:23]} 32. c8=Q+ {[%clk 0:01:32]}  Rxc8 {[%clk 0:00:23]} 33. Nxc8 {[%clk 0:01:32]}  Rxf2 {[%clk 0:00:23]} 34. Nd6 {[%clk 0:01:30]}  Rxh2 {[%clk 0:00:18]} 35. Rc7 {[%clk 0:01:28]}  Kg7 {[%clk 0:00:19]} 36. Rxf7+ {[%clk 0:01:25]}  Kh6 {[%clk 0:00:19]} 37. Ne4 {[%clk 0:01:24]}  Re2 {[%clk 0:00:16]} 38. g4 {[%clk 0:01:21]}  Rg2 {[%clk 0:00:14]} 39. g5+ {[%clk 0:01:21]}  Kh5 {[%clk 0:00:15]} 40. Rxh7+ {[%clk 0:01:20]}  Kg4 {[%clk 0:00:16]} 41. Ke5 {[%clk 0:01:20]}  Ra2 {[%clk 0:00:15]} 42. Rd7 {[%clk 0:01:18]}  Ra5+ {[%clk 0:00:14]} 43. Rd5 {[%clk 0:01:14]}  Ra4 {[%clk 0:00:04]} 44. Rd4 {[%clk 0:01:11]}  Ra5+ {[%clk 0:00:04]} 45. Kf6 {[%clk 0:01:08]}  Ra6+ {[%clk 0:00:01]} 46. Rd6 {[%clk 0:01:08]} 1-0


[Site "https://www.chess.com"]

[Event "Titled Tuesday Blitz January 31 Early 2023"]
[White "Hambleton, Aman"]
[Black "Chigaev, Maksim"]
[WhiteFideId "2606577"]
[BlackFideId "4108116"]
[WhiteElo "2420"]
[BlackElo "2628"]
[Result "0-1"]
[Round "04"]
[TimeControl "180+2"]
[Date "2023.01.31"]
[WhiteClock "0:00:02"]
[BlackClock "0:00:05"]

1. d4 {[%clk 0:03:00]}  Nf6 {[%clk 0:03:00]} 2. Bf4 {[%clk 0:02:59]}  d6 {[%clk 0:03:00]} 3. e3 {[%clk 0:02:57]}  g6 {[%clk 0:03:00]} 4. h3 {[%clk 0:02:56]}  Bg7 {[%clk 0:03:01]} 5. Nf3 {[%clk 0:02:57]}  c5 {[%clk 0:03:00]} 6. c3 {[%clk 0:02:56]}  Qb6 {[%clk 0:03:00]} 7. Qb3 {[%clk 0:02:55]}  Be6 {[%clk 0:03:01]} 8. Qxb6 {[%clk 0:02:34]}  axb6 {[%clk 0:03:01]} 9. a3 {[%clk 0:02:35]}  Bd5 {[%clk 0:03:01]} 10. Nbd2 {[%clk 0:02:35]}  Bc6 {[%clk 0:03:01]} 11. Bd3 {[%clk 0:02:32]}  O-O {[%clk 0:03:00]} 12. O-O {[%clk 0:02:31]}  Nbd7 {[%clk 0:02:33]} 13. Rad1 {[%clk 0:01:35]}  Rfd8 {[%clk 0:02:20]} 14. Bc2 {[%clk 0:00:58]}  b5 {[%clk 0:01:56]} 15. Rfe1 {[%clk 0:00:57]}  Nd5 {[%clk 0:01:34]} 16. Bg3 {[%clk 0:00:52]}  N5b6 {[%clk 0:01:34]} 17. e4 {[%clk 0:00:45]}  cxd4 {[%clk 0:01:34]} 18. cxd4 {[%clk 0:00:32]}  d5 {[%clk 0:01:34]} 19. exd5 {[%clk 0:00:32]}  Nxd5 {[%clk 0:01:34]} 20. Ne4 {[%clk 0:00:21]}  N7b6 {[%clk 0:01:34]} 21. Bb3 {[%clk 0:00:18]}  Nc4 {[%clk 0:01:09]} 22. Re2 {[%clk 0:00:19]}  Ndb6 {[%clk 0:00:59]} 23. Rde1 {[%clk 0:00:09]}  Bxe4 {[%clk 0:00:53]} 24. Rxe4 {[%clk 0:00:10]}  e6 {[%clk 0:00:54]} 25. R4e2 {[%clk 0:00:03]}  Rac8 {[%clk 0:00:52]} 26. Bh4 {[%clk 0:00:03]}  Rd7 {[%clk 0:00:50]} 27. g4 {[%clk 0:00:02]}  h6 {[%clk 0:00:49]} 28. Bg3 {[%clk 0:00:02]}  Bxd4 {[%clk 0:00:35]} 29. Nxd4 {[%clk 0:00:03]}  Rxd4 {[%clk 0:00:35]} 30. Kg2 {[%clk 0:00:04]}  Rcd8 {[%clk 0:00:32]} 31. Rc1 {[%clk 0:00:02]}  g5 {[%clk 0:00:32]} 32. Rcc2 {[%clk 0:00:02]}  R8d7 {[%clk 0:00:28]} 33. Ba2 {[%clk 0:00:02]}  Rd2 {[%clk 0:00:24]} 34. Bb3 {[%clk 0:00:01]}  Rxe2 {[%clk 0:00:22]} 35. Rxe2 {[%clk 0:00:02]}  Rd2 {[%clk 0:00:18]} 36. Rxd2 {[%clk 0:00:03]}  Nxd2 {[%clk 0:00:18]} 37. Bc2 {[%clk 0:00:02]}  Ndc4 {[%clk 0:00:18]} 38. b3 {[%clk 0:00:02]}  Nxa3 {[%clk 0:00:18]} 39. Bd3 {[%clk 0:00:02]}  Nd5 {[%clk 0:00:15]} 40. Bd6 {[%clk 0:00:02]}  b4 {[%clk 0:00:14]} 41. Be4 {[%clk 0:00:02]}  f6 {[%clk 0:00:06]} 42. Bxd5 {[%clk 0:00:02]}  exd5 {[%clk 0:00:07]} 43. Bxb4 {[%clk 0:00:02]}  Nb5 {[%clk 0:00:08]} 44. Bc5 {[%clk 0:00:01]}  Kf7 {[%clk 0:00:09]} 45. Kf3 {[%clk 0:00:02]}  Ke6 {[%clk 0:00:09]} 46. Ke3 {[%clk 0:00:02]}  Kf7 {[%clk 0:00:09]} 47. f4 {[%clk 0:00:02]}  Kg6 {[%clk 0:00:04]} 48. f5+ {[%clk 0:00:02]}  Kg7 {[%clk 0:00:05]} 49. Kd3 {[%clk 0:00:03]}  h5 {[%clk 0:00:05]} 50. Ke3 {[%clk 0:00:02]}  h4 {[%clk 0:00:05]} 51. Kd3 {[%clk 0:00:03]}  Kf7 {[%clk 0:00:06]} 52. Ke3 {[%clk 0:00:02]}  Ke8 {[%clk 0:00:07]} 53. Kd3 {[%clk 0:00:03]}  Kd7 {[%clk 0:00:07]} 54. Ke3 {[%clk 0:00:03]}  Nd6 {[%clk 0:00:06]} 55. Kd4 {[%clk 0:00:02]}  Kc6 {[%clk 0:00:06]} 56. Bb4 {[%clk 0:00:02]}  Ne4 {[%clk 0:00:06]} 57. Be7 {[%clk 0:00:01]}  b6 {[%clk 0:00:06]} 58. b4 {[%clk 0:00:01]}  b5 {[%clk 0:00:06]} 59. Bf8 {[%clk 0:00:01]}  Nf2 {[%clk 0:00:04]} 60. Be7 {[%clk 0:00:01]}  Nxh3 {[%clk 0:00:04]} 61. Bxf6 {[%clk 0:00:02]}  Nf2 {[%clk 0:00:03]} 62. Bxg5 {[%clk 0:00:02]}  h3 {[%clk 0:00:04]} 63. Bf4 {[%clk 0:00:02]}  Nxg4 {[%clk 0:00:05]} 0-1


[Site "https://www.chess.com"]

[Event "Titled Tuesday Blitz January 31 Early 2023"]
[White "Starozhilov, Leonid"]
[Black "Duda, Jan-Krzysztof"]
[WhiteFideId "14106752"]
[BlackFideId "1170546"]
[WhiteElo "2313"]
[BlackElo "2724"]
[Result "0-1"]
[Round "04"]
[TimeControl "180+2"]
[Date "2023.01.31"]
[WhiteClock "0:00:17"]
[BlackClock "0:01:56"]

1. e4 {[%clk 0:02:56]}  g6 {[%clk 0:02:59]} 2. d4 {[%clk 0:02:55]}  Bg7 {[%clk 0:03:00]} 3. Nc3 {[%clk 0:02:54]}  d5 {[%clk 0:03:00]} 4. exd5 {[%clk 0:02:54]}  Nf6 {[%clk 0:03:00]} 5. Nf3 {[%clk 0:02:43]}  O-O {[%clk 0:02:58]} 6. Be2 {[%clk 0:02:40]}  Nxd5 {[%clk 0:02:57]} 7. Nxd5 {[%clk 0:02:40]}  Qxd5 {[%clk 0:02:58]} 8. c3 {[%clk 0:02:41]}  c5 {[%clk 0:02:57]} 9. dxc5 {[%clk 0:02:41]}  Qxc5 {[%clk 0:02:58]} 10. Be3 {[%clk 0:02:41]}  Qc7 {[%clk 0:02:58]} 11. O-O {[%clk 0:02:39]}  Nc6 {[%clk 0:02:58]} 12. Qa4 {[%clk 0:02:37]}  e5 {[%clk 0:02:57]} 13. Rfd1 {[%clk 0:02:29]}  h6 {[%clk 0:02:56]} 14. Qh4 {[%clk 0:02:28]}  Ne7 {[%clk 0:02:33]} 15. Qc4 {[%clk 0:02:17]}  Nc6 {[%clk 0:02:29]} 16. Qh4 {[%clk 0:02:16]}  h5 {[%clk 0:02:29]} 17. Bc5 {[%clk 0:02:04]}  Re8 {[%clk 0:02:24]} 18. h3 {[%clk 0:01:57]}  b6 {[%clk 0:02:22]} 19. Bd6 {[%clk 0:01:56]}  Qb7 {[%clk 0:02:22]} 20. Bb5 {[%clk 0:01:53]}  a6 {[%clk 0:02:16]} 21. Bc4 {[%clk 0:01:44]}  Be6 {[%clk 0:02:13]} 22. Bxe6 {[%clk 0:01:25]}  Rxe6 {[%clk 0:02:14]} 23. Ba3 {[%clk 0:01:24]}  Bf6 {[%clk 0:02:12]} 24. Qe4 {[%clk 0:01:23]}  b5 {[%clk 0:02:08]} 25. Rd5 {[%clk 0:01:09]}  Rae8 {[%clk 0:02:04]} 26. Rad1 {[%clk 0:00:53]}  Na5 {[%clk 0:01:59]} 27. b3 {[%clk 0:00:48]}  Qc6 {[%clk 0:01:57]} 28. R5d3 {[%clk 0:00:17]}  Qxe4 {[%clk 0:01:56]} 0-1


[Site "https://www.chess.com"]

[Event "Titled Tuesday Blitz January 31 Early 2023"]
[White "Martinez Alcantara, Jose Eduardo"]
[Black "Szpar, Milosz"]
[WhiteFideId "3805662"]
[BlackFideId "1184989"]
[WhiteElo "2619"]
[BlackElo "2447"]
[Result "1-0"]
[Round "04"]
[TimeControl "180+2"]
[Date "2023.01.31"]
[WhiteClock "0:00:51"]
[BlackClock "0:00:01"]

1. e4 {[%clk 0:03:00]}  e6 {[%clk 0:02:59]} 2. Ne2 {[%clk 0:03:01]}  d5 {[%clk 0:02:58]} 3. Ng3 {[%clk 0:02:58]}  c5 {[%clk 0:02:51]} 4. d3 {[%clk 0:02:58]}  Nc6 {[%clk 0:02:51]} 5. Nc3 {[%clk 0:02:58]}  Nf6 {[%clk 0:02:31]} 6. Be2 {[%clk 0:02:58]}  dxe4 {[%clk 0:02:20]} 7. Ngxe4 {[%clk 0:02:59]}  Be7 {[%clk 0:02:19]} 8. O-O {[%clk 0:02:59]}  O-O {[%clk 0:02:18]} 9. Be3 {[%clk 0:02:58]}  b6 {[%clk 0:02:17]} 10. Bf3 {[%clk 0:02:52]}  Bb7 {[%clk 0:02:16]} 11. a4 {[%clk 0:02:53]}  Qd7 {[%clk 0:02:13]} 12. Re1 {[%clk 0:02:47]}  Rad8 {[%clk 0:02:07]} 13. Nd2 {[%clk 0:02:43]}  Nd5 {[%clk 0:02:00]} 14. Nc4 {[%clk 0:02:40]}  Nxe3 {[%clk 0:01:45]} 15. fxe3 {[%clk 0:02:41]}  Nb4 {[%clk 0:01:24]} 16. Bxb7 {[%clk 0:02:37]}  Qxb7 {[%clk 0:01:25]} 17. Qe2 {[%clk 0:02:36]}  Nd5 {[%clk 0:01:16]} 18. Ne4 {[%clk 0:02:35]}  f5 {[%clk 0:01:13]} 19. Ned2 {[%clk 0:02:35]}  a6 {[%clk 0:01:05]} 20. Nf3 {[%clk 0:02:36]}  b5 {[%clk 0:01:01]} 21. axb5 {[%clk 0:02:36]}  axb5 {[%clk 0:01:01]} 22. Nce5 {[%clk 0:02:37]}  f4 {[%clk 0:00:51]} 23. exf4 {[%clk 0:02:34]}  Rxf4 {[%clk 0:00:45]} 24. c4 {[%clk 0:02:23]}  Nc7 {[%clk 0:00:35]} 25. b3 {[%clk 0:02:15]}  Bf6 {[%clk 0:00:29]} 26. Rad1 {[%clk 0:02:06]}  Rf5 {[%clk 0:00:23]} 27. Ng4 {[%clk 0:02:04]}  Bc3 {[%clk 0:00:22]} 28. Rf1 {[%clk 0:02:03]}  Rdf8 {[%clk 0:00:22]} 29. Nf2 {[%clk 0:01:59]}  Qc6 {[%clk 0:00:16]} 30. Ne4 {[%clk 0:01:59]}  Bf6 {[%clk 0:00:15]} 31. Kh1 {[%clk 0:01:54]}  Bd4 {[%clk 0:00:12]} 32. h3 {[%clk 0:01:43]}  e5 {[%clk 0:00:12]} 33. Ng3 {[%clk 0:01:41]}  Rf4 {[%clk 0:00:10]} 34. Nxe5 {[%clk 0:01:32]}  Rxf1+ {[%clk 0:00:08]} 35. Rxf1 {[%clk 0:01:31]}  Rxf1+ {[%clk 0:00:08]} 36. Qxf1 {[%clk 0:01:11]}  Bxe5 {[%clk 0:00:08]} 37. Nf5 {[%clk 0:01:12]}  Qf6 {[%clk 0:00:06]} 38. Qf3 {[%clk 0:01:13]}  h6 {[%clk 0:00:05]} 39. g4 {[%clk 0:01:11]}  b4 {[%clk 0:00:04]} 40. Qe4 {[%clk 0:01:11]}  Ne6 {[%clk 0:00:02]} 41. Qd5 {[%clk 0:01:11]}  Kh7 {[%clk 0:00:02]} 42. Qe4 {[%clk 0:01:12]}  Ng5 {[%clk 0:00:02]} 43. Qe3 {[%clk 0:01:12]}  Qc6+ {[%clk 0:00:02]} 44. Kg1 {[%clk 0:01:11]}  Bd4 {[%clk 0:00:02]} 45. Nxd4 {[%clk 0:01:10]}  cxd4 {[%clk 0:00:03]} 46. Qg3 {[%clk 0:01:11]}  Nf3+ {[%clk 0:00:04]} 47. Kf2 {[%clk 0:01:11]}  Ng5 {[%clk 0:00:05]} 48. h4 {[%clk 0:01:11]}  Qf6+ {[%clk 0:00:05]} 49. Ke2 {[%clk 0:01:11]}  Ne6 {[%clk 0:00:06]} 50. Kd1 {[%clk 0:01:11]}  Nf4 {[%clk 0:00:06]} 51. Qf3 {[%clk 0:01:11]}  Qe5 {[%clk 0:00:06]} 52. c5 {[%clk 0:01:11]}  Ne6 {[%clk 0:00:06]} 53. c6 {[%clk 0:01:10]}  Kg8 {[%clk 0:00:06]} 54. g5 {[%clk 0:01:06]}  hxg5 {[%clk 0:00:06]} 55. hxg5 {[%clk 0:01:07]}  Qxg5 {[%clk 0:00:07]} 56. Qe4 {[%clk 0:01:06]}  Qg1+ {[%clk 0:00:06]} 57. Kc2 {[%clk 0:01:06]}  Qf2+ {[%clk 0:00:06]} 58. Kb1 {[%clk 0:01:07]}  Qf1+ {[%clk 0:00:06]} 59. Ka2 {[%clk 0:01:05]}  Qf2+ {[%clk 0:00:05]} 60. Kb1 {[%clk 0:01:06]}  Qe3 {[%clk 0:00:06]} 61. Qf5 {[%clk 0:01:00]}  Qe1+ {[%clk 0:00:06]} 62. Ka2 {[%clk 0:01:00]}  Qd2+ {[%clk 0:00:07]} 63. Kb1 {[%clk 0:01:00]}  Qd1+ {[%clk 0:00:06]} 64. Kb2 {[%clk 0:01:01]}  Qe2+ {[%clk 0:00:06]} 65. Kb1 {[%clk 0:01:01]}  Qe3 {[%clk 0:00:03]} 66. Ka2 {[%clk 0:00:58]}  Qd2+ {[%clk 0:00:03]} 67. Kb1 {[%clk 0:00:57]}  Qe3 {[%clk 0:00:03]} 68. Ka2 {[%clk 0:00:58]}  g5 {[%clk 0:00:04]} 69. Qd5 {[%clk 0:00:55]}  Kf7 {[%clk 0:00:04]} 70. c7 {[%clk 0:00:54]}  Qd2+ {[%clk 0:00:03]} 71. Kb1 {[%clk 0:00:55]}  Qc3 {[%clk 0:00:03]} 72. Qd7+ {[%clk 0:00:54]}  Kf6 {[%clk 0:00:03]} 73. c8=Q {[%clk 0:00:54]}  Qe1+ {[%clk 0:00:02]} 74. Qc1 {[%clk 0:00:54]}  Qe2 {[%clk 0:00:01]} 75. Qb5 {[%clk 0:00:51]} 1-0


[Site "https://www.chess.com"]

[Event "Titled Tuesday Blitz January 31 Early 2023"]
[White "Vlassov, Nikolai"]
[Black "Pranav, V"]
[WhiteFideId "4103360"]
[BlackFideId "25060783"]
[WhiteElo "2283"]
[BlackElo "2597"]
[Result "0-1"]
[Round "04"]
[TimeControl "180+2"]
[Date "2023.01.31"]
[WhiteClock "0:00:08"]
[BlackClock "0:00:10"]

1. e4 {[%clk 0:03:00]}  e5 {[%clk 0:02:59]} 2. Bc4 {[%clk 0:03:00]}  Nc6 {[%clk 0:02:58]} 3. f4 {[%clk 0:03:00]}  Bc5 {[%clk 0:02:54]} 4. Nf3 {[%clk 0:02:59]}  d6 {[%clk 0:02:54]} 5. Nc3 {[%clk 0:02:58]}  Nf6 {[%clk 0:02:52]} 6. f5 {[%clk 0:02:58]}  a6 {[%clk 0:02:50]} 7. d3 {[%clk 0:02:58]}  h6 {[%clk 0:02:46]} 8. Qe2 {[%clk 0:02:56]}  Nd4 {[%clk 0:02:35]} 9. Nxd4 {[%clk 0:02:54]}  exd4 {[%clk 0:02:36]} 10. Nd5 {[%clk 0:02:52]}  Nxd5 {[%clk 0:02:35]} 11. Bxd5 {[%clk 0:02:51]}  c6 {[%clk 0:02:33]} 12. Bb3 {[%clk 0:02:51]}  Qf6 {[%clk 0:02:20]} 13. O-O {[%clk 0:02:47]}  Bd7 {[%clk 0:02:19]} 14. Bf4 {[%clk 0:02:45]}  O-O-O {[%clk 0:02:17]} 15. e5 {[%clk 0:02:20]}  dxe5 {[%clk 0:02:10]} 16. Qxe5 {[%clk 0:02:02]}  Qxe5 {[%clk 0:02:10]} 17. Bxe5 {[%clk 0:02:02]}  f6 {[%clk 0:02:11]} 18. Bg3 {[%clk 0:02:01]}  Rde8 {[%clk 0:02:10]} 19. Bf7 {[%clk 0:01:47]}  Re2 {[%clk 0:02:07]} 20. Rac1 {[%clk 0:01:33]}  Bb4 {[%clk 0:01:58]} 21. Bh5 {[%clk 0:01:32]}  Re7 {[%clk 0:01:54]} 22. c3 {[%clk 0:01:29]}  dxc3 {[%clk 0:01:51]} 23. bxc3 {[%clk 0:01:29]}  Ba3 {[%clk 0:01:52]} 24. Rc2 {[%clk 0:01:27]}  Re3 {[%clk 0:01:50]} 25. d4 {[%clk 0:01:19]}  a5 {[%clk 0:01:27]} 26. Bg6 {[%clk 0:01:14]}  b5 {[%clk 0:01:22]} 27. Re1 {[%clk 0:01:12]}  Rxe1+ {[%clk 0:01:18]} 28. Bxe1 {[%clk 0:01:13]}  Be8 {[%clk 0:01:18]} 29. Re2 {[%clk 0:01:08]}  Bxg6 {[%clk 0:01:17]} 30. fxg6 {[%clk 0:01:08]}  Kd7 {[%clk 0:01:18]} 31. Kf2 {[%clk 0:00:59]}  Kd6 {[%clk 0:01:17]} 32. Bd2 {[%clk 0:00:58]}  Kd5 {[%clk 0:01:17]} 33. Ke3 {[%clk 0:00:48]}  Kc4 {[%clk 0:00:49]} 34. Kf4 {[%clk 0:00:33]}  b4 {[%clk 0:00:29]} 35. Re3 {[%clk 0:00:20]}  Rd8 {[%clk 0:00:26]} 36. Kf5 {[%clk 0:00:18]}  Bb2 {[%clk 0:00:23]} 37. cxb4 {[%clk 0:00:18]}  Rxd4 {[%clk 0:00:21]} 38. Be1 {[%clk 0:00:11]}  axb4 {[%clk 0:00:20]} 39. Ke6 {[%clk 0:00:12]}  f5 {[%clk 0:00:16]} 40. Kxf5 {[%clk 0:00:11]}  Rd6 {[%clk 0:00:16]} 41. Bh4 {[%clk 0:00:07]}  c5 {[%clk 0:00:13]} 42. Re4+ {[%clk 0:00:07]}  Bd4 {[%clk 0:00:13]} 43. Be7 {[%clk 0:00:07]}  Ra6 {[%clk 0:00:12]} 44. Bf8 {[%clk 0:00:07]}  Rf6+ {[%clk 0:00:10]} 45. Kg4 {[%clk 0:00:08]}  Rxf8 {[%clk 0:00:10]} 0-1


[Site "https://www.chess.com"]

[Event "Titled Tuesday Blitz January 31 Early 2023"]
[White "Jobava, Baadur"]
[Black "Darini, Pouria"]
[WhiteFideId "13601520"]
[BlackFideId "12502200"]
[WhiteElo "2578"]
[BlackElo "2401"]
[Result "1-0"]
[Round "04"]
[TimeControl "180+2"]
[Date "2023.01.31"]
[WhiteClock "0:01:07"]
[BlackClock "0:00:02"]

1. b3 {[%clk 0:03:00]}  d5 {[%clk 0:02:58]} 2. Bb2 {[%clk 0:03:01]}  c6 {[%clk 0:02:58]} 3. d3 {[%clk 0:03:02]}  Bg4 {[%clk 0:02:58]} 4. Nd2 {[%clk 0:03:03]}  Nd7 {[%clk 0:02:57]} 5. g3 {[%clk 0:03:03]}  e6 {[%clk 0:02:56]} 6. Bg2 {[%clk 0:03:03]}  Ngf6 {[%clk 0:02:55]} 7. Ngf3 {[%clk 0:03:03]}  a5 {[%clk 0:02:55]} 8. a3 {[%clk 0:03:02]}  Be7 {[%clk 0:02:55]} 9. O-O {[%clk 0:03:03]}  O-O {[%clk 0:02:55]} 10. h3 {[%clk 0:03:03]}  Bh5 {[%clk 0:02:54]} 11. Qe1 {[%clk 0:03:02]}  Ne8 {[%clk 0:02:04]} 12. e4 {[%clk 0:03:00]}  Nc7 {[%clk 0:02:05]} 13. g4 {[%clk 0:02:46]}  Bg6 {[%clk 0:02:04]} 14. Ne5 {[%clk 0:02:46]}  Nxe5 {[%clk 0:02:04]} 15. Bxe5 {[%clk 0:02:47]}  Bf6 {[%clk 0:01:35]} 16. Bxf6 {[%clk 0:02:46]}  Qxf6 {[%clk 0:01:36]} 17. f4 {[%clk 0:02:42]}  Qd4+ {[%clk 0:01:36]} 18. Qf2 {[%clk 0:02:40]}  Qxf2+ {[%clk 0:01:35]} 19. Kxf2 {[%clk 0:02:39]}  f6 {[%clk 0:01:29]} 20. Rae1 {[%clk 0:02:37]}  a4 {[%clk 0:00:56]} 21. b4 {[%clk 0:02:34]}  d4 {[%clk 0:00:47]} 22. Nc4 {[%clk 0:01:54]}  Nb5 {[%clk 0:00:43]} 23. e5 {[%clk 0:01:35]}  fxe5 {[%clk 0:00:42]} 24. Kg3 {[%clk 0:01:35]}  exf4+ {[%clk 0:00:39]} 25. Rxf4 {[%clk 0:01:36]}  Rxf4 {[%clk 0:00:38]} 26. Kxf4 {[%clk 0:01:37]}  Rf8+ {[%clk 0:00:38]} 27. Kg3 {[%clk 0:01:38]}  Re8 {[%clk 0:00:32]} 28. Re5 {[%clk 0:01:35]}  Re7 {[%clk 0:00:27]} 29. h4 {[%clk 0:01:30]}  Kf8 {[%clk 0:00:21]} 30. h5 {[%clk 0:01:25]}  Bf7 {[%clk 0:00:20]} 31. Be4 {[%clk 0:01:24]}  h6 {[%clk 0:00:20]} 32. Kf4 {[%clk 0:01:23]}  Ke8 {[%clk 0:00:20]} 33. g5 {[%clk 0:01:22]}  hxg5+ {[%clk 0:00:20]} 34. Rxg5 {[%clk 0:01:23]}  Kf8 {[%clk 0:00:14]} 35. Ke5 {[%clk 0:01:21]}  Be8 {[%clk 0:00:09]} 36. Bh7 {[%clk 0:01:19]}  Rd7 {[%clk 0:00:07]} 37. Be4 {[%clk 0:01:16]}  Rf7 {[%clk 0:00:05]} 38. Bg6 {[%clk 0:01:08]}  Rf2 {[%clk 0:00:04]} 39. Bxe8 {[%clk 0:01:08]}  Re2+ {[%clk 0:00:04]} 40. Kf4 {[%clk 0:01:09]}  Kxe8 {[%clk 0:00:04]} 41. Rxg7 {[%clk 0:01:10]}  Rxc2 {[%clk 0:00:02]} 42. h6 {[%clk 0:01:10]}  Kf8 {[%clk 0:00:03]} 43. Rxb7 {[%clk 0:01:10]}  Kg8 {[%clk 0:00:03]} 44. h7+ {[%clk 0:01:10]}  Kh8 {[%clk 0:00:03]} 45. Ne5 {[%clk 0:01:11]}  Rf2+ {[%clk 0:00:03]} 46. Kg5 {[%clk 0:01:09]}  Rf5+ {[%clk 0:00:03]} 47. Kg6 {[%clk 0:01:09]}  Nd6 {[%clk 0:00:02]} 48. Rb8+ {[%clk 0:01:07]} 1-0


[Site "https://www.chess.com"]